bitfinex/quotes_ETHUSD_20240731
["timestamp","ask_amount","ask_price","bid_price","bid_amount"]
[1722390620435,0.02831644,3284.4,3284.1,1.141309]
[1722390622018,0.02831644,3284.4,3284.1,1.2022021]
[1722390622304,0.02831644,3284.4,3284.1,4.2471621]
[1722390622597,0.02831133,3284.3,3284.1,4.2471621]
[1722390622769,3.04451,3284.6,3284.1,4.186269]
[1722390623102,0.0283316,3284.5,3284.2,0.7231259]
[1722390623301,0.0283316,3284.5,3284.3,0.55]
[1722390623518,0.0283316,3284.5,3284.3,3.65567045]
[1722390623664,7.29,3284.8,3284.3,3.65567045]
[1722390623865,7.29,3284.8,3284.4,0.36556705]
[1722390624064,7.29,3284.8,3284.5,0.55]
[1722390624304,9.92472314,3285.3,3284.5,2.97928953]
[1722390624464,3.04381,3285.4,3284.8,3.04431]
[1722390624666,6.08765,3285.4,3284.9,0.55]
[1722390624891,3.04381,3285.4,3284.9,0.55]
[1722390625203,3.04381,3285.4,3284.9,3.59422]
[1722390625554,7.29,3285.7,3285.1,3.04398]
[1722390625759,7.29,3285.7,3285.2,3.59394]
[1722390626003,3.04332,3285.9,3285.4,3.04373]
[1722390626208,12.6298,3286.1,3285.5,0.55]
[1722390626421,7.29,3286.1,3285.5,3.65451148]
[1722390626558,3.04323,3286.0,3285.5,0.55]
[1722390626758,6.08653,3286.0,3285.4,0.55]
[1722390626955,3.04322,3286.0,3285.4,3.59375]
[1722390627159,3.04322,3286.0,3285.5,0.06086638]
[1722390627359,3.04322,3286.0,3285.6,0.55]
[1722390627621,6.08651,3286.0,3285.6,0.55]
[1722390627903,3.04347,3285.8,3285.5,0.55]
[1722390628057,3.04347,3285.8,3285.3,3.59385]
[1722390628262,3.04324,3286.0,3285.4,3.04375]
[1722390628462,3.04324,3286.0,3285.5,0.55]
[1722390628689,6.08653,3286.0,3285.5,0.55]
[1722390628909,3.04351,3285.7,3285.5,0.55]
[1722390629072,3.04347,3285.8,3285.3,0.55]
[1722390629278,4.380893,3286.0,3285.3,3.65465937]
[1722390629478,7.424183,3286.0,3285.3,3.59379]
[1722390629691,3.04335,3285.9,3285.3,3.59379]
[1722390630817,3.04324,3286.0,3285.4,3.04376]
[1722390631126,3.04324,3286.0,3285.5,3.59363]
[1722390631620,6.08617,3286.2,3285.5,3.59363]
[1722390631833,3.04324,3286.0,3285.5,3.59363]
[1722390632853,3.04324,3286.0,3285.5,0.55]
[1722390633049,3.04324,3286.0,3285.4,0.55]
[1722390633753,3.04324,3286.0,3285.4,3.59375]
[1722390634815,3.04324,3286.0,3285.4,0.55]
[1722390635126,3.04355,3285.7,3285.4,0.55]
[1722390635343,3.04401,3285.2,3284.7,7.41]
[1722390635544,3.04378,3285.4,3284.8,3.0443]
[1722390635852,3.04372,3285.5,3284.9,3.10505137]
[1722390636058,3.04372,3285.5,3284.8,3.04425]
[1722390636239,3.04372,3285.5,3284.7,10.4544]
[1722390636240,3.04391,3285.3,3284.7,10.4544]
[1722390636457,3.04397,3285.2,3284.7,11.18128364]
[1722390636859,3.04416,3285.0,3284.7,7.41]
[1722390637063,2.3279,3285.2,3284.2,2.3901]
[1722390637246,3.04479,3284.3,3283.8,2.3901]
[1722390637447,3.04485,3284.3,3283.8,2.3901]
[1722390637664,0.0654979,3284.2,3283.8,4.40258722]
[1722390637831,3.04499,3284.1,3283.8,4.40258722]
[1722390638033,3.04485,3284.3,3283.8,4.40258722]
[1722390638330,0.06549291,3284.2,3283.8,2.3901]
[1722390638645,3.04497,3284.1,3283.8,2.3901]
[1722390638852,0.06547203,3284.0,3283.8,2.3901]
[1722390639672,3.04483,3284.3,3283.8,2.3901]
[1722390639973,0.06535597,3283.9,3283.8,2.3901]
[1722390640279,0.06535597,3283.9,3283.8,3.2278076]
[1722390640485,3.04464,3284.5,3283.8,6.2730576]
[1722390640772,3.04479,3284.3,3283.8,2.3901]
[1722390641150,0.06528372,3284.2,3283.9,3.65604528]
[1722390641347,0.06528372,3284.2,3283.9,0.55]
[1722390641564,3.04479,3284.3,3283.9,1.148529]
[1722390641736,0.06526587,3284.1,3283.9,0.55]
[1722390641935,3.04502,3284.1,3283.9,0.55]
[1722390642296,0.06527674,3284.0,3283.6,3.59542]
[1722390642435,3.11034674,3284.0,3283.6,0.55]
[1722390642777,0.06527674,3284.0,3283.6,0.55]
[1722390642997,0.06527674,3284.0,3283.7,0.659551]
[1722390643156,0.06527674,3284.0,3283.8,0.55]
[1722390644715,0.06527674,3284.0,3283.9,2.3701]
[1722390645015,0.06527718,3284.0,3283.9,2.9201]
[1722390645510,0.06528012,3284.0,3283.9,0.55]
[1722390645722,3.0449,3284.2,3283.8,0.55]
[1722390646029,3.04486,3284.3,3283.8,0.55]
[1722390646315,3.04486,3284.3,3283.8,0.9754931]
[1722390646614,0.06528473,3284.2,3284.1,6.08994]
[1722390646816,3.04434,3284.8,3284.2,3.0448]
[1722390647021,3.04434,3284.8,3284.1,3.04497]
[1722390647022,3.04434,3284.8,3284.3,1.21986378]
[1722390647219,7.29,3285.0,3284.4,3.04462]
[1722390647433,3.04401,3285.2,3284.5,3.59455]
[1722390647572,6.08805,3285.2,3284.6,2.51448214]
[1722390647767,3.04422,3285.0,3284.7,0.55]
[1722390648016,3.04422,3285.0,3284.5,0.55]
[1722390648325,0.06522154,3284.9,3284.4,3.59464]
[1722390648628,0.06522154,3284.9,3284.5,0.7248327]
[1722390648629,3.10948154,3284.9,3284.5,0.7248327]
[1722390648925,3.10948154,3284.9,3284.6,0.55]
[1722390650930,0.06522154,3284.9,3284.6,3.59444]
[1722390651419,3.04396,3285.2,3284.6,3.59444]
[1722390651732,10.33391,3285.3,3284.7,0.49889684]
[1722390652033,0.06535306,3285.2,3284.8,0.55]
[1722390653373,3.10936306,3285.2,3284.8,0.55]
[1722390653594,3.04404,3285.1,3284.8,0.55]
[1722390653818,3.109667,3285.0,3284.8,0.55]
[1722390654125,0.065517,3285.0,3284.8,0.55]
[1722390654329,0.065517,3285.0,3284.8,0.359449]
[1722390654622,3.04401,3285.2,3284.9,0.55]
[1722390654769,3.04405,3285.1,3284.9,0.55]
[1722390655171,3.04414,3285.0,3284.9,0.55]
[1722390655371,3.04403,3285.2,3284.9,0.55]
[1722390655608,3.04403,3285.2,3284.7,0.55]
[1722390655820,3.04403,3285.2,3284.7,3.898858]
[1722390656005,3.04404,3285.1,3284.7,0.854448]
[1722390656206,3.04404,3285.1,3284.7,0.55]
[1722390656417,3.04404,3285.1,3284.5,3.5946]
[1722390657328,7.29,3285.6,3284.5,0.55]
[1722390657549,3.04436,3284.8,3284.3,3.55]
[1722390657847,3.04442,3284.7,3284.1,2.4516]
[1722390657973,3.04466,3284.5,3283.9,3.04511]
[1722390658173,3.04469,3284.4,3283.9,3.04511]
[1722390658630,2.2749,3284.8,3283.8,3.04525]
[1722390658783,3.04475,3284.4,3283.9,3.04515]
[1722390659014,3.04475,3284.4,3283.8,3.590635]
[1722390659355,3.04456,3284.6,3283.8,0.545385]
[1722390659523,3.04456,3284.6,3284.0,3.04498]
[1722390660083,6.08914,3284.6,3284.1,0.55]
[1722390660411,3.04456,3284.6,3284.1,0.55]
[1722390661515,3.04477,3284.4,3283.9,0.55]
[1722390662022,3.04477,3284.4,3283.9,3.59515]
[1722390662361,3.04477,3284.4,3284.0,0.664033]
[1722390662511,3.04477,3284.4,3284.1,0.55]
[1722390662720,3.04454,3284.6,3284.1,0.55]
[1722390662922,3.0446,3284.5,3284.0,3.59504]
[1722390663160,3.0446,3284.5,3284.0,0.55]
[1722390663373,3.0446,3284.5,3283.9,0.55]
[1722390663583,2.2749,3284.8,3284.0,3.404566]
[1722390663584,3.04444,3284.7,3284.0,3.404566]
[1722390663720,3.04444,3284.7,3284.1,3.59495]
[1722390663922,3.0443,3284.9,3284.3,3.04478]
[1722390664159,3.04442,3284.7,3284.2,3.04487]
[1722390664327,3.04442,3284.7,3284.3,0.55]
[1722390664653,6.08862,3284.9,3284.3,0.55]
[1722390664859,7.29,3285.0,3284.3,0.909487]
[1722390665073,7.29,3285.0,3284.4,2.47858714]
[1722390665279,7.29,3285.0,3284.5,0.55]
[1722390665488,7.29,3285.0,3284.6,3.04451]
[1722390665633,7.29,3285.0,3284.7,0.55]
[1722390665827,10.33414,3285.0,3284.7,0.55]
[1722390666128,10.33414,3285.0,3284.5,0.55]
[1722390666344,10.33414,3285.0,3284.5,3.59459]
[1722390666608,7.29,3285.0,3284.8,3.04431]
[1722390666828,7.29,3285.0,3284.9,3.59423]
[1722390667288,7.3553749,3285.0,3284.9,3.59423]
[1722390667928,0.0653749,3285.0,3284.9,6.63846]
[1722390668087,0.0653749,3285.0,3284.9,9.652006]
[1722390668287,5.44515,3285.9,3285.3,3.04383]
[1722390668739,0.06546652,3285.8,3285.3,3.04383]
[1722390669438,0.06546652,3285.8,3285.3,3.04379]
[1722390669940,0.06546652,3285.8,3285.1,3.04399]
[1722390669941,3.04354,3285.7,3285.1,3.04396]
[1722390670106,3.04383,3285.4,3284.9,0.55]
[1722390670306,3.04383,3285.4,3284.7,0.55]
[1722390670490,3.10936282,3285.3,3284.7,3.59441]
[1722390670686,3.10936282,3285.3,3284.7,3.59435]
[1722390670922,3.10936282,3285.3,3284.8,3.0443]
[1722390671126,3.10936282,3285.3,3284.9,0.55]
[1722390671334,0.06545282,3285.3,3284.9,0.55]
[1722390671934,0.06557929,3285.2,3284.7,0.691534]
[1722390672138,3.10954929,3285.2,3284.8,0.55]
[1722390672337,0.06557929,3285.2,3284.8,4.1134764]
[1722390672637,0.06557929,3285.2,3285.0,6.08813]
[1722390672935,10.33364,3285.6,3284.8,4.1134064]
[1722390673141,10.33363,3285.6,3284.8,4.1134064]
[1722390673318,10.33363,3285.6,3284.9,3.04417]
[1722390673651,3.04382,3285.4,3285.0,0.55]
[1722390673957,3.04419,3285.0,3284.2,3.04484]
[1722390674186,3.04419,3285.0,3284.1,2.4875]
[1722390674187,3.04432,3284.8,3284.1,2.4875]
[1722390674324,3.04442,3284.7,3284.1,2.4875]
[1722390674524,3.04442,3284.7,3283.8,3.04523]
[1722390674525,3.04461,3284.5,3283.8,3.04517]
[1722390674721,3.04442,3284.7,3283.8,3.04517]
[1722390674722,3.04451,3284.6,3283.8,6.09035]
[1722390675032,3.04467,3284.5,3283.7,5.53277]
[1722390675232,3.04467,3284.5,3283.8,0.553277]
[1722390676475,3.04447,3284.7,3283.9,3.04515]
[1722390676676,3.04442,3284.7,3284.0,3.59504]
[1722390677178,3.04442,3284.7,3284.0,6.64005]
[1722390677342,3.04433,3284.8,3284.1,0.664005]
[1722390677528,3.04433,3284.8,3284.2,0.55]
[1722390677763,10.33429,3284.9,3284.2,0.55]
[1722390677945,7.29,3284.9,3284.2,3.59482]
[1722390678527,7.29,3284.9,3284.3,3.04478]
[1722390678783,3.04421,3285.0,3284.3,3.04478]
[1722390679432,9.6964,3285.2,3284.4,3.04461]
[1722390679745,7.29,3285.2,3284.6,3.0445]
[1722390679947,3.04405,3285.1,3284.5,0.55]
[1722390680265,7.29,3285.2,3284.6,6.08895]
[1722390680472,7.29,3285.2,3284.6,3.04445]
[1722390681178,7.29,3285.2,3284.8,3.04427]
[1722390681756,7.29,3285.2,3284.6,6.08887]
[1722390681961,7.29,3285.2,3284.6,3.04442]
[1722390682167,10.33396,3285.2,3284.5,3.59459]
[1722390682397,0.06544823,3285.1,3284.5,3.59459]
[1722390682665,0.06544823,3285.1,3284.6,3.0445]
[1722390683088,0.06544823,3285.1,3284.7,3.04439]
[1722390683408,0.06544823,3285.1,3284.6,6.08895]
[1722390683607,0.06544823,3285.1,3284.6,3.04445]
[1722390683966,0.06544823,3285.1,3284.6,6.08889]
[1722390684607,0.06544823,3285.1,3284.7,3.04441]
[1722390684992,0.06544823,3285.1,3284.6,3.04444]
[1722390685214,3.04386,3285.3,3284.6,3.0445]
[1722390685806,0.06547524,3285.2,3284.6,3.0445]
[1722390686011,3.04414,3285.0,3284.5,0.55]
[1722390686312,0.06547688,3284.9,3284.4,3.59469]
[1722390686460,0.06547688,3284.9,3284.4,4.52929885]
[1722390686665,3.04409,3285.1,3284.4,4.52929885]
[1722390686866,0.06548585,3285.0,3284.4,4.52929885]
[1722390689679,2.303,3284.8,3284.0,3.045]
[1722390689876,3.10994601,3284.7,3283.8,8.949647]
[1722390690059,6.15441601,3284.7,3283.9,3.04511]
[1722390690262,3.10993601,3284.7,3284.0,1.1994757]
[1722390691073,3.10993601,3284.7,3284.1,0.55]
[1722390691823,0.06545601,3284.7,3284.1,0.55]
[1722390693618,3.04451,3284.6,3284.1,0.55]
[1722390693993,0.06535087,3284.5,3284.1,0.55]
[1722390694330,0.06535087,3284.5,3284.1,1.02946157]
[1722390695819,3.04451,3284.6,3284.1,1.02946157]
[1722390696003,0.06097928,3284.4,3284.1,1.02946157]
[1722390696318,0.06097032,3284.3,3284.1,1.02946157]
[1722390696826,3.04451,3284.6,3284.1,1.02946157]
[1722390696974,0.06096135,3284.2,3284.1,1.02946157]
[1722390697171,3.04451,3284.6,3284.1,1.02946157]
[1722390697419,0.06096135,3284.2,3284.1,1.02946157]
[1722390697938,3.04451,3284.6,3284.1,1.02946157]
[1722390698151,0.06096135,3284.2,3284.1,1.02946157]
[1722390698435,3.04451,3284.6,3284.1,1.02946157]
[1722390698607,0.06096135,3284.2,3284.1,1.02946157]
[1722390698789,3.04451,3284.6,3284.1,1.02946157]
[1722390698988,0.06096135,3284.2,3284.1,1.02946157]
[1722390699520,3.04451,3284.6,3284.1,1.02946157]
[1722390699736,0.06096135,3284.2,3284.1,1.02946157]
[1722390700032,3.04451,3284.6,3284.1,1.02946157]
[1722390700233,0.06096135,3284.2,3284.1,0.55]
[1722390700392,3.04451,3284.6,3284.1,0.55]
[1722390700743,5.34738,3284.8,3284.1,0.55]
[1722390700890,0.06090105,3284.5,3284.1,3.59497]
[1722390701206,5.34738,3284.8,3284.2,0.47944457]
[1722390701408,0.06087215,3284.4,3284.2,0.47944457]
[1722390701619,5.34738,3284.8,3284.2,0.47944457]
[1722390701935,3.04451,3284.6,3284.1,0.55]
[1722390702438,0.06087614,3284.5,3284.1,0.55]
[1722390702791,3.04507,3284.0,3283.5,2.3405]
[1722390702995,3.04507,3284.0,3283.2,2.3405]
[1722390703192,2.4029,3284.1,3283.4,3.04561]
[1722390703496,2.4029,3284.1,3283.2,6.431844]
[1722390703497,0.06084128,3284.0,3283.7,3.04532]
[1722390703723,7.29,3284.3,3283.9,3.04515]
[1722390704035,3.0446,3284.5,3283.9,3.04515]
[1722390704242,19.76,3284.7,3283.9,3.04515]
[1722390704409,3.0446,3284.5,3283.9,3.04515]
[1722390705117,19.76,3284.7,3283.9,3.902855]
[1722390705289,19.76,3284.7,3284.1,6.08978]
[1722390705494,19.76,3284.7,3284.2,0.55]
[1722390706060,22.80442,3284.7,3284.0,3.59505]
[1722390706628,19.76,3284.7,3284.0,0.55]
[1722390706807,19.76,3284.7,3284.3,3.04477]
[1722390707133,19.76,3284.7,3284.1,3.04488]
[1722390707340,19.76,3284.7,3284.2,4.258859]
[1722390707633,19.76,3284.7,3284.2,6.753669]
[1722390707831,19.76,3284.7,3284.2,3.708799]
[1722390708047,19.76,3284.7,3284.2,3.708839]
[1722390708250,19.76,3284.7,3284.3,3.04478]
[1722390708457,19.76,3284.7,3284.3,3.04472]
[1722390708665,2.2567,3285.1,3284.3,3.04472]
[1722390708666,7.29,3285.1,3284.5,3.04455]
[1722390708871,12.55998875,3285.4,3284.7,3.04441]
[1722390709165,10.33379,3285.4,3284.7,3.04434]
[1722390709315,7.29,3285.4,3284.8,3.04432]
[1722390709962,10.33382,3285.4,3284.6,3.04449]
[1722390710256,10.33382,3285.4,3284.7,0.55]
[1722390710726,3.04387,3285.3,3284.7,0.55]
[1722390712429,0.05828749,3285.2,3284.7,0.55]
[1722390713256,0.05828749,3285.2,3284.7,3.5944]
[1722390713552,10.33377,3285.4,3284.7,4.2764215]
[1722390713753,0.05827853,3285.1,3284.7,4.2764215]
[1722390713960,10.33377,3285.4,3284.7,4.2764215]
[1722390714172,0.05826957,3285.0,3284.8,3.04431]
[1722390714457,7.29,3285.4,3284.8,3.04431]
[1722390714658,0.05826061,3284.9,3284.8,3.77637815]
[1722390714866,7.29,3285.4,3284.8,3.77637815]
[1722390715017,0.05826061,3284.9,3284.8,0.73206815]
[1722390715219,7.29,3285.4,3284.7,4.2763715]
[1722390715530,7.29,3285.4,3285.0,3.04413]
[1722390716265,7.29,3285.4,3285.1,3.04404]
[1722390716619,7.29,3285.4,3285.0,3.04412]
[1722390716858,7.29,3285.4,3285.0,3.652947]
[1722390717022,7.29,3285.4,3285.1,3.04404]
[1722390718054,7.29,3285.4,3285.0,0.608827]
[1722390718387,7.29,3285.4,3284.8,3.0443]
[1722390718662,10.33382,3285.4,3284.7,0.55]
[1722390718870,3.04419,3285.0,3284.3,38.04473]
[1722390719017,3.04402,3285.2,3284.4,6.59461]
[1722390719229,3.04409,3285.1,3284.4,4.755974]
[1722390719434,3.04415,3285.0,3284.4,1.755974]
[1722390719648,3.04415,3285.0,3284.4,0.55]
[1722390720006,3.04402,3285.2,3284.5,3.04459]
[1722390720139,3.04402,3285.2,3284.5,3.04453]
[1722390721238,2.3228,3285.3,3284.5,3.04453]
[1722390721439,5.36667,3285.3,3284.6,3.0445]
[1722390721640,3.04398,3285.2,3284.5,3.04453]
[1722390722858,3.04398,3285.2,3284.5,3.04452]
[1722390724888,6.08801,3285.2,3284.5,3.04452]
[1722390725090,3.04413,3285.1,3284.4,3.59464]
[1722390725389,3.04396,3285.2,3284.5,3.04458]
[1722390726650,2.3228,3285.3,3284.7,3.04441]
[1722390726880,7.29,3285.4,3284.7,3.04436]
[1722390727087,7.29,3285.4,3284.8,0.55]
[1722390727292,0.0585875,3285.3,3284.9,3.04417]
[1722390728419,0.0585875,3285.3,3284.8,0.55]
[1722390728581,0.0585875,3285.3,3284.8,6.08618]
[1722390728788,0.0585875,3285.3,3284.8,7.0296756]
[1722390729018,0.0585875,3285.3,3285.0,3.04408]
[1722390729325,0.0585875,3285.3,3285.1,0.55]
[1722390729672,0.0585875,3285.3,3285.2,3.04395]
[1722390730064,7.29,3285.9,3285.2,3.04395]
[1722390730270,0.05865903,3285.8,3285.2,3.04395]
[1722390731318,0.05865903,3285.8,3285.1,0.55]
[1722390731319,3.04349,3285.7,3285.1,0.55]
[1722390731770,0.05876065,3285.6,3285.1,0.55]
[1722390732166,0.05876065,3285.6,3285.1,0.909406]
[1722390732773,0.05876065,3285.6,3285.2,3.04395]
[1722390732986,10.33331,3285.9,3285.2,3.04395]
[1722390733516,0.05877466,3285.8,3285.2,3.04395]
[1722390733930,3.04349,3285.7,3285.1,0.909406]
[1722390734217,3.04349,3285.7,3285.1,0.55]
[1722390734385,0.05875674,3285.6,3285.1,3.59404]
[1722390734715,10.33331,3285.9,3285.1,3.59404]
[1722390734926,0.05877466,3285.8,3285.2,3.04395]
[1722390735138,0.05877466,3285.8,3285.4,2.3198]
[1722390735270,0.05877466,3285.8,3285.6,3.04358]
[1722390735490,7.29,3286.2,3285.5,3.04361]
[1722390735690,7.29,3286.2,3285.6,3.59358]
[1722390735691,0.05889886,3286.1,3285.6,3.59358]
[1722390736418,0.05889886,3286.1,3285.6,0.55]
[1722390736770,3.04308,3286.2,3285.6,0.55]
[1722390736973,0.05898014,3286.0,3285.6,0.55]
[1722390737189,3.04322,3286.0,3285.5,0.55]
[1722390737414,0.05904838,3285.9,3285.4,0.55]
[1722390738301,0.05904838,3285.9,3285.5,0.663758]
[1722390738502,3.04315,3286.1,3285.6,0.55]
[1722390738676,0.05905734,3286.0,3285.6,0.55]
[1722390738879,0.05905734,3286.0,3285.5,0.55]
[1722390739099,0.05905734,3286.0,3285.5,1.213747]
[1722390740387,0.05905734,3286.0,3285.5,4.257357]
[1722390740591,0.05905734,3286.0,3285.6,3.04357]
[1722390740789,3.04305,3286.2,3285.5,4.257377]
[1722390740988,0.05904838,3285.9,3285.5,4.257377]
[1722390741195,3.04305,3286.2,3285.6,0.4257377]
[1722390741397,0.05903943,3285.8,3285.6,3.4693077]
[1722390741590,3.04305,3286.2,3285.6,3.4693077]
[1722390741843,0.05903047,3285.7,3285.6,3.4693077]
[1722390742048,3.04305,3286.2,3285.6,4.0193077]
[1722390742555,0.05852963,3286.1,3285.6,4.0193077]
[1722390743157,3.04305,3286.2,3285.6,4.0193077]
[1722390743675,0.05858191,3286.1,3285.6,4.0193077]
[1722390743968,3.04305,3286.2,3285.6,4.0193077]
[1722390744137,3.04305,3286.2,3285.7,0.40193077]
[1722390744337,0.05863418,3286.1,3285.7,0.40193077]
[1722390744752,3.04305,3286.2,3285.7,0.40193077]
[1722390745123,0.05863418,3286.1,3285.7,0.40193077]
[1722390745464,3.04305,3286.2,3285.7,0.40193077]
[1722390745981,0.05863668,3286.1,3285.7,0.40193077]
[1722390746323,3.04305,3286.2,3285.7,0.40193077]
[1722390746527,0.05863668,3286.1,3285.6,4.0193077]
[1722390746729,0.05863668,3286.1,3285.6,0.55]
[1722390746956,0.05863668,3286.1,3285.1,2.3618]
[1722390746957,3.04326,3286.0,3285.5,0.55]
[1722390747268,3.10187527,3286.0,3285.4,0.55]
[1722390748235,0.05861527,3286.0,3285.4,3.5937]
[1722390748441,0.05861527,3286.0,3285.5,3.40304]
[1722390748674,3.04313,3286.1,3285.6,0.55]
[1722390748876,0.05857395,3285.9,3285.6,0.55]
[1722390749187,0.05856499,3285.8,3285.6,0.55]
[1722390749535,3.04313,3286.1,3285.6,0.55]
[1722390749772,0.05855603,3285.7,3285.6,0.55]
[1722390749978,3.04313,3286.1,3285.6,0.945304]
[1722390750137,0.05855603,3285.7,3285.6,0.55]
[1722390750335,0.05855603,3285.7,3285.4,0.55]
[1722390750565,3.04331,3285.9,3285.4,0.55]
[1722390750744,0.05854929,3285.6,3285.4,0.55]
[1722390750973,3.04331,3285.9,3285.4,0.55]
[1722390751148,0.05854255,3285.5,3285.4,1.48331745]
[1722390751353,3.04331,3285.9,3285.4,1.48331745]
[1722390751751,0.05856943,3285.8,3285.4,1.48331745]
[1722390752158,3.04354,3285.7,3285.0,6.08817]
[1722390752368,2.50146943,3285.8,3285.1,3.04399]
[1722390752558,0.05853908,3285.6,3285.1,3.04399]
[1722390752760,0.05854804,3285.7,3285.1,3.04399]
[1722390752935,2.4429,3285.8,3285.2,0.608807]
[1722390753144,0.05853908,3285.6,3285.2,0.608807]
[1722390753376,0.05854804,3285.7,3285.2,0.608807]
[1722390753681,0.05853012,3285.5,3285.2,3.652747]
[1722390753857,0.05853908,3285.6,3285.2,3.652747]
[1722390754058,0.05852116,3285.4,3285.3,0.3652747]
[1722390754248,3.04331,3285.9,3285.3,0.3652747]
[1722390754441,0.05850643,3285.4,3285.3,0.3652747]
[1722390754667,3.04331,3285.9,3285.3,0.3652747]
[1722390754870,0.05847407,3285.4,3285.3,0.3652747]
[1722390755058,3.04331,3285.9,3285.3,0.3652747]
[1722390755588,0.05850991,3285.8,3285.3,0.3652747]
[1722390756005,3.04354,3285.7,3284.9,38.04421]
[1722390756162,2.2898,3285.6,3285.0,0.55]
[1722390756346,2.2898,3285.6,3284.9,0.55]
[1722390756347,3.04377,3285.4,3284.9,0.55]
[1722390756802,3.04377,3285.4,3284.7,3.04439]
[1722390756803,0.05846505,3285.3,3284.8,0.55]
[1722390756959,0.05846505,3285.3,3284.8,0.909439]
[1722390758195,3.04377,3285.4,3284.8,0.909439]
[1722390758546,0.05844386,3285.3,3284.8,0.909439]
[1722390758856,3.0441,3285.1,3284.5,2.2848]
[1722390759261,0.05832984,3285.0,3284.5,2.2848]
[1722390759443,3.04452,3284.6,3283.8,3.04519]
[1722390759644,3.04453,3284.6,3283.9,3.0451]
[1722390759887,0.05828502,3284.5,3284.0,0.30451]
[1722390760104,0.05828502,3284.5,3283.8,3.04525]
[1722390760396,0.05805939,3284.4,3283.9,3.04515]
[1722390760924,3.04442,3284.7,3283.9,3.04515]
[1722390761068,3.10260438,3284.6,3283.9,3.04515]
[1722390761430,3.10260438,3284.6,3283.7,35.0]
[1722390761431,3.0446,3284.5,3284.0,0.304515]
[1722390761573,3.0446,3284.5,3284.1,0.55]
[1722390761777,3.0448,3284.3,3283.8,0.55]
[1722390762378,0.05794248,3284.2,3283.8,0.55]
[1722390762783,3.04499,3284.1,3283.8,0.55]
[1722390762979,6.08967,3284.3,3283.8,0.55]
[1722390763213,6.08967,3284.3,3283.4,3.04557]
[1722390763214,3.04489,3284.2,3283.5,3.59552]
[1722390763362,3.1028391,3284.2,3283.6,35.664109]
[1722390763570,3.1028391,3284.2,3283.7,0.55]
[1722390763808,3.04489,3284.2,3283.7,0.55]
[1722390764018,0.05792902,3284.1,3283.7,3.59901288]
[1722390764381,3.04489,3284.2,3283.7,3.59901288]
[1722390765418,0.05793995,3284.1,3283.7,3.59901288]
[1722390765618,3.10291995,3284.1,3283.7,3.59901288]
[1722390765790,0.05793995,3284.1,3283.7,3.59901288]
[1722390766196,3.04479,3284.3,3283.7,0.55]
[1722390766686,3.04489,3284.2,3283.7,0.55]
[1722390767019,3.10276415,3284.2,3283.7,0.55]
[1722390768094,0.05787415,3284.2,3283.7,0.55]
[1722390768299,3.04465,3284.5,3283.7,0.55]
[1722390768544,3.04478,3284.4,3283.7,0.55]
[1722390768839,3.10265671,3284.4,3283.7,1.2805019]
[1722390769344,3.04479,3284.3,3283.7,1.2805019]
[1722390769740,3.04513,3284.0,3283.3,5.41076]
[1722390769941,3.04513,3284.0,3283.3,2.3651]
[1722390770143,3.10308008,3283.9,3283.3,2.3651]
[1722390771104,3.10308008,3283.9,3283.4,0.55]
[1722390771304,3.10308008,3283.9,3283.1,3.0]
[1722390771305,3.04525,3283.8,3283.1,3.0]
[1722390771505,0.05784214,3283.7,3283.2,3.882721]
[1722390771754,3.04516,3283.9,3283.3,0.55]
[1722390772047,3.045,3284.1,3283.4,3.0456]
[1722390772652,0.05782186,3284.0,3283.4,3.0456]
[1722390773958,0.05782186,3284.0,3283.6,3.04538]
[1722390774159,0.05782186,3284.0,3283.7,0.854538]
[1722390774326,3.04483,3284.3,3283.7,0.854538]
[1722390774528,3.10272017,3284.2,3283.7,0.854538]
[1722390774756,3.04497,3284.1,3283.7,0.55]
[1722390774975,0.05783017,3284.2,3283.5,0.55]
[1722390775132,0.05782205,3284.0,3283.5,3.59547]
[1722390775333,3.04485,3284.3,3283.5,3.59547]
[1722390775531,3.10271999,3284.2,3283.5,3.59547]
[1722390775882,3.04497,3284.1,3283.6,0.664102]
[1722390776092,3.04508,3284.0,3283.7,0.55]
[1722390776229,3.10291168,3284.0,3283.7,0.55]
[1722390776435,3.10291168,3284.0,3283.4,0.55]
[1722390776860,0.05783168,3284.0,3283.4,3.59556]
[1722390777378,0.0578179,3283.9,3283.4,3.59556]
[1722390777535,0.0578179,3283.9,3283.5,3.635386]
[1722390777731,3.04488,3284.2,3283.6,0.55]
[1722390777976,3.10286102,3284.1,3283.6,0.55]
[1722390779288,3.10286102,3284.1,3283.5,0.589916]
[1722390779789,0.05783102,3284.1,3283.6,3.04543]
[1722390779950,0.05783102,3284.1,3283.6,3.7135206]
[1722390780944,0.05783102,3284.1,3283.8,3.04522]
[1722390781139,10.33455,3284.6,3283.9,0.55]
[1722390781458,0.05787926,3284.5,3283.9,3.313722]
[1722390781648,0.05787926,3284.5,3284.0,3.04506]
[1722390782343,0.05787926,3284.5,3284.2,3.04487]
[1722390782687,0.05787926,3284.5,3284.0,3.04506]
[1722390782688,0.05787926,3284.5,3284.0,3.045]
[1722390782984,0.05787926,3284.5,3284.2,3.04486]
[1722390784094,0.05787926,3284.5,3284.1,0.6358722]
[1722390784095,0.05787926,3284.5,3284.1,3.6808422]
[1722390784296,0.05787926,3284.5,3284.2,0.55]
[1722390785479,0.05787926,3284.5,3284.2,3.59486]
[1722390786193,3.04425,3284.9,3284.2,3.5948]
[1722390786491,0.0576591,3284.4,3284.2,4.01787322]
[1722390786808,0.05765013,3284.3,3284.2,0.55]